fUSD/lending_fUSD_20250906
["ID","MTS","AMOUNT","RATE_DAILY","PERIOD"]
[383851966,1757142675999,-2072.79,0.000583,30]
[383851967,1757142676009,-151.0,0.000583,120]
[383851968,1757142676018,-151.0,0.000583,120]
[383851969,1757142676027,-293.715389,0.000583,120]
[383851970,1757142676036,-151.0,0.000583,120]
[383851971,1757142676046,-151.0,0.000583,120]
[383851972,1757142676055,-151.817612,0.000583,120]
[383851973,1757142676064,-151.0,0.000583,120]
[383851974,1757142676073,-151.0,0.000583,120]
[383851975,1757142676082,-151.0,0.000583,120]
[383851976,1757142676091,-151.0,0.000583,120]
[383851977,1757142676100,-151.0,0.000583,120]
[383851978,1757142676109,-151.0,0.000583,120]
[383851979,1757142676118,-213.849627,0.000583,120]
[383851980,1757142676127,-151.0,0.000583,120]
[383851981,1757142676137,-151.0,0.000583,120]
[383851982,1757142676146,-151.0,0.000583,120]
[383851983,1757142676156,-151.0,0.000583,120]
[383851984,1757142676165,-151.0,0.000583,120]
[383851985,1757142676175,-151.0,0.000583,120]
[383851986,1757142676184,-151.0,0.000583,120]
[383851987,1757142676193,-151.0,0.000583,120]
[383851988,1757142676202,-151.0,0.000583,120]
[383851989,1757142676211,-257.0,0.000583,5]
[383851990,1757142676221,-151.0,0.000583,120]
[383851991,1757142676230,-278.015379,0.000583,120]
[383851992,1757142676239,-151.0,0.000583,120]
[383851993,1757142676248,-151.0,0.000583,120]
[383851994,1757142676258,-151.0,0.000583,120]
[383851995,1757142676267,-151.0,0.000583,120]
[383851996,1757142676277,-151.0,0.000583,120]
[383851997,1757142676286,-151.0,0.000583,120]
[383851998,1757142676295,-151.0,0.000583,120]
[383851999,1757142676304,-170.97795,0.000583,120]
[383852000,1757142676314,-170.97795,0.000583,120]
[383852001,1757142676323,-170.97795,0.000583,120]
[383852002,1757142676333,-151.0,0.000583,120]
[383852003,1757142676342,-151.0,0.000583,120]
[383852004,1757142676352,-151.0,0.000583,120]
[383852005,1757142676361,-151.0,0.000583,120]
[383852006,1757142676371,-151.0,0.000583,120]
[383852007,1757142676389,-500.0,0.00058651,120]
[383852008,1757142676398,-500.0,0.00058741,120]
[383852009,1757142676407,-500.0,0.00058937,120]
[383852010,1757142676417,-500.0,0.00058986,120]
[383852011,1757142676427,-20000.0,0.00059,120]
[383852012,1757142676436,-354.0,0.00059,120]
[383852013,1757142676446,-335.57,0.00059112,120]
[383852014,1757142676455,-161.26,0.000593,60]
[383852015,1757142676465,-11898.7465066,0.00059321,2]
[383852016,1757142676474,-14159.02161171,0.000595,120]
[383852017,1757142676483,-152.95084116,0.000596,120]
[383852018,1757142676492,-152.95084114,0.000596,120]
[383852019,1757142676503,-152.95084114,0.000596,120]
[383852020,1757142676514,-1973.05,0.000598,30]
[383852021,1757142676523,-233.28,0.000599,7]
[383852022,1757142676535,-206.94493448,0.000599,120]
[383852023,1757142676546,-5969.1117333,0.00059959,2]
[383852024,1757142676556,-36612.04521779,0.0006,61]
[383852025,1757142676566,-623.61715938,0.0006,120]
[383852026,1757142676575,-171.28075386,0.0006,22]
[383852027,1757142676585,-272.54,0.0006,120]
[383852028,1757142676594,-4479.30436237,0.0006,120]
[383852029,1757142676603,-1750.0,0.0006,120]
[383852030,1757142676613,-6054.40621162,0.0006,120]
[383852031,1757142676622,-20000.0,0.0006,120]
[383852032,1757142676772,-2200.86603346,0.0006,10]
[383852033,1757142676791,-1873282.74182988,0.0006,15]
[383852034,1757142677249,-297542.66155385,0.0006,15]
[383852035,1757142677259,-535950.52263315,0.0006,30]
[383852036,1757142677285,-679.6794585,0.00050882,2]
[383852037,1757142677296,-447.06940023,0.00057534,120]
[383852038,1757142677306,-2843.1537379,0.0006,30]
[383852039,1757142677319,-593.41340116,0.0006,30]
[383852040,1757142677330,-363.98,0.0006,30]
[383852041,1757142677523,-250.0,0.00049999,120]
[383852042,1757142677534,-151.0,0.00049999,120]
[383852043,1757142677544,-600.0,0.00049999,120]
[383852044,1757142677554,-155.9940727,0.00049999,120]
[383852045,1757142677565,-250.0,0.00049999,120]
[383852046,1757142677576,-600.0,0.00049999,120]
[383852047,1757142677586,-400.0,0.00054794,120]
[383852048,1757142677596,-400.0,0.00054794,120]
[383852049,1757142677605,-1000.0,0.00054794,120]
[383852050,1757142677615,-270.292198,0.00055,120]
[383852051,1757142677625,-400.0,0.00057534,120]
[383852052,1757142677634,-254.86921608,0.00057534,120]
[383852053,1757142677644,-103.12211606,0.00057534,120]
[383852054,1757142677656,-296.87788394,0.00057534,120]
[383852055,1757142677666,-203.12211606,0.00057534,120]
[383852056,1757142677677,-796.87788394,0.00057534,120]
[383852057,1757142677687,-2818.48219106,0.0006,30]
[383852058,1757142677698,-399.07387676,0.0006,30]
[383852059,1757142677710,-1190.82612164,0.0006,30]
[383852060,1757142677729,-517.70563534,0.0006,30]
[383852061,1757142677767,-158150.01596454,0.0006,30]
[383852062,1757142677778,-3557.77625699,0.0006,30]
[383852063,1757142677789,-500.0,0.0006,30]
[383852064,1757142677801,-5268.43307372,0.0006,30]
[383852065,1757142677812,-11802.06070833,0.0006,30]
[383852066,1757142677832,-3156.18049084,0.0006,30]
[383852067,1757142677843,-547.03466666,0.0006,30]
[383852068,1757142677861,-266.6244499,0.0005,120]
[383852069,1757142678576,-6185.36434315,0.0005,120]
[383852070,1757142678642,-62.80167128,0.0005,120]
[383852071,1757142678663,-1492.3842267,0.0005,120]
[383852072,1757142678917,-1899.805893,0.000478,120]
[383852073,1757142678931,-3100.194107,0.000478,120]
[383852074,1757142678941,-9675.59565203,0.0005,120]
[383852075,1757142679019,-42639.19456972,0.0005,120]
[383852076,1757142679037,-300.23409272,0.0005,120]
[383852077,1757142679048,-669.24,0.0005,120]
[383852079,1757142730323,197.20299248,0.0003013,120]
[383852083,1757142773606,433.0,0.0003013,120]
[383852084,1757142782899,266.0,0.0003013,120]
[383852085,1757142793078,320.0,0.0003013,120]
[383852086,1757142818010,184.0,0.00018159,2]
[383852087,1757142832711,293.0,0.0003013,120]
[383852088,1757142837189,574.0,0.0003013,120]
[383852089,1757142842512,380.0,0.0003013,120]
[383852099,1757142950929,457.0,0.0003013,120]
[383852101,1757142954012,299.0,0.0003013,120]
[383852102,1757143013004,1490.0,0.0003013,120]
[383852103,1757143016452,845.0,0.0003013,120]
[383852107,1757143100782,325.0,0.00018195,2]
[383852108,1757143205155,-155.66,0.00023817,2]
[383852109,1757143205179,-57.54421415,0.00023923,2]
[383852110,1757143208367,-137.45578585,0.00023923,2]
[383852111,1757143208392,-162.54421415,0.00023923,2]
[383852112,1757143215138,-137.45578585,0.00023923,2]
[383852113,1757143215160,-112.98705939,0.00023923,2]
[383852114,1757143219281,-137.01294061,0.00023923,2]
[383852115,1757143219305,-46.83752816,0.00023976,2]
[383852116,1757143222049,-231.65737646,0.00023976,2]
[383852117,1757143224617,-221.50509538,0.00023976,2]
[383852118,1757143224641,-40.30869884,0.00023976,2]
[383852119,1757143250518,-241.11867241,0.00023976,2]
[383852120,1757143253750,-18.57262875,0.00023976,2]
[383852121,1757143253774,-137.28737125,0.0002403,2]
[383852122,1757143256170,-12.71262875,0.0002403,2]
[383852123,1757143256200,-240.67737125,0.00024964,2]
[383852124,1757143298386,-210.7702453,0.00024014,2]
[383852125,1757143322341,-216.94251592,0.00024014,2]
[383852126,1757143324566,-152.42108229,0.00024014,2]
[383852236,1757143508859,43890.79554706,0.0002,2]
[383852237,1757143508887,50000.0,0.0002,2]
[383852238,1757143508914,50000.0,0.0002,2]
[383852239,1757143508941,50000.0,0.0002,2]
[383852240,1757143508968,50000.0,0.0002,2]
[383852241,1757143509613,-253.39,0.0002,2]
[383852243,1757143513636,-157.97079583,0.0002,2]
[383852244,1757143515332,-348.80920417,0.0002,2]
[383852246,1757143518375,-388.62043284,0.0002,2]
[383852247,1757143520733,578.42862223,9e-05,2]
[383852248,1757143521484,-328.60554271,0.0002,2]
[383852249,1757143523053,-152.0,0.0002,2]
[383852250,1757143527116,-190.37956716,0.0002,2]
[383852253,1757143537988,6663.47947426,9e-05,2]
[383852256,1757143551177,833.0,0.0003013,120]
[383852257,1757143555124,1655.0,0.0003013,120]
[383852259,1757143558036,-374.26919124,0.000199,2]
[383852261,1757143560479,-197.13864074,0.000199,2]
[383852263,1757143562599,-401.61635926,0.000199,2]
[383852264,1757143564480,1997.34280414,8e-05,2]
[383852265,1757143566155,-183.36,0.000199,2]
[383852283,1757143610876,518.0,0.0003013,120]
[383852285,1757143618919,-777.06,0.000198,2]
[383852286,1757143632127,-664.94619608,0.000199,2]
[383852292,1757143648183,-942.32894103,0.000199,2]
[383852293,1757143652081,-1156.63797784,0.000199,2]
[383852294,1757143657606,70721.37535112,0.00018,2]
[383852295,1757143657632,844.94,0.00018,2]
[383852296,1757143657656,100000.0,0.00018,2]
[383852297,1757143657682,96325.79232139,0.00018,2]
[383852300,1757143673206,1814.29718615,0.0003013,120]
[383852301,1757143675326,1995.0,0.0003013,120]
[383852302,1757143676515,1747.89004378,0.000181,2]
[383852310,1757143734565,645.0,0.0003013,120]
[383852311,1757143736665,441.0,0.0003013,120]
[383852312,1757143743589,-184.31125796,0.00019873,2]
[383852313,1757143743615,-195.0,0.0001988,2]
[383852314,1757143743643,-300.0,0.00019887,2]
[383852315,1757143743668,-300.0,0.00019887,2]
[383852316,1757143743694,-2146.59117992,0.000199,2]
[383852317,1757143743720,-500.0,0.00019973,2]
[383852318,1757143743746,-500.0,0.00019973,2]
[383852319,1757143743771,-500.0,0.00019973,2]
[383852320,1757143743796,-500.0,0.00019973,2]
[383852321,1757143743821,-945.0,0.00019998,2]
[383852322,1757143743851,-500.0,0.00019999,2]
[383852323,1757143743876,-500.0,0.00019999,2]
[383852324,1757143743902,-617.21451626,0.00019999,2]
[383852325,1757143743928,-274.01955963,0.00019999,2]
[383852326,1757143743971,-500.0,0.00019999,2]
[383852327,1757143743997,-152.22292157,0.00019999,2]
[383852328,1757143744027,-500.0,0.00019999,2]
[383852329,1757143744054,-500.0,0.00019999,2]
[383852330,1757143744080,-500.0,0.00019999,2]
[383852331,1757143744110,-500.0,0.00019999,2]
[383852332,1757143744135,-500.0,0.00019999,2]
[383852333,1757143744165,-500.0,0.00019999,2]
[383852334,1757143744192,-500.0,0.00019999,2]
[383852335,1757143744225,-500.0,0.00019999,2]
[383852336,1757143744250,-500.0,0.00019999,2]
[383852337,1757143744276,-500.0,0.00019999,2]
[383852338,1757143744304,-500.0,0.00019999,2]
[383852339,1757143744329,-199.20534016,0.00019999,2]
[383852340,1757143744358,-353.22564362,0.00019999,2]
[383852341,1757143744389,-500.0,0.00019999,2]
[383852342,1757143744417,-500.0,0.00019999,2]
[383852343,1757143744443,-500.0,0.00019999,2]
[383852344,1757143744474,-500.0,0.00019999,2]
[383852345,1757143744503,-500.0,0.00019999,2]
[383852346,1757143744534,-500.0,0.00019999,2]
[383852347,1757143744564,-500.0,0.00019999,2]
[383852348,1757143744591,-500.0,0.00019999,2]
[383852349,1757143744621,-500.0,0.00019999,2]
[383852350,1757143744649,-500.0,0.00019999,2]
[383852351,1757143744678,-500.0,0.00019999,2]
[383852352,1757143744707,-500.0,0.00019999,2]
[383852353,1757143744734,-485.6963899,0.00019999,2]
[383852354,1757143744762,-500.0,0.00019999,2]
[383852355,1757143744796,-500.0,0.00019999,2]
[383852356,1757143744826,-500.0,0.00019999,2]
[383852357,1757143744856,-500.0,0.00019999,2]
[383852358,1757143744886,-448.56963899,0.00019999,2]
[383852359,1757143744914,-245.25241711,0.00019999,2]
[383852360,1757143744942,-500.0,0.00019999,2]
[383852361,1757143744970,-1237120.20359621,0.0002,2]
[383852362,1757143744997,-912450.65755791,0.0002,2]
[383852364,1757143752149,-162.7883782,0.00019999,2]
[383852365,1757143754112,-26.4716218,0.00019999,2]
[383852366,1757143754133,-24346.30886512,0.0002,2]
[383852367,1757143754154,-421.41378967,0.00020421,2]
[383852368,1757143754175,-184.31125796,0.00020421,2]
[383852369,1757143754196,-500.0,0.00020521,2]
[383852370,1757143754217,-503.62137989,0.00020521,2]
[383852372,1757143769087,-300.0,0.0002186,2]
[383852373,1757143769111,-250.0,0.0002186,2]
[383852374,1757143769134,-500.0,0.0002186,2]
[383852375,1757143769158,-300.0,0.0002186,2]
[383852376,1757143769180,-195.0,0.0002186,2]
[383852377,1757143769201,-193.0,0.0002186,2]
[383852378,1757143769223,-195.0,0.0002189,2]
[383852379,1757143769244,-300.0,0.0002189,2]
[383852380,1757143769266,-150.0,0.0002189,2]
[383852381,1757143769289,-500.0,0.000219,2]
[383852382,1757143769310,-5495.04432663,0.00022,4]
[383852383,1757143769330,-362.83,0.00022,7]
[383852384,1757143769352,-34827.42175132,0.000225,2]
[383852385,1757143769379,-898.77,0.000225,7]
[383852386,1757143769399,-666.0,0.00022879,3]
[383852387,1757143769421,-421.41378965,0.0002292,2]
[383852388,1757143769443,-200.0,0.000235,2]
[383852389,1757143772881,310.74,0.00019999,2]
[383852390,1757143778947,257.94,0.00015354,2]
[383852391,1757143779369,257.94,0.00016162,2]
[383852393,1757143779578,257.94,0.0001697,2]
[383852394,1757143779776,257.94,0.00017778,2]
[383852395,1757143779977,257.94,0.00018586,2]
[383852396,1757143780181,257.94,0.00019395,2]
[383852397,1757143780378,257.94,0.00020203,2]
[383852398,1757143780596,257.94,0.00021011,2]
[383852399,1757143780792,257.94,0.00021819,2]
[383852400,1757143781201,257.94,0.00022627,2]
[383852401,1757143781414,257.94,0.00023435,2]
[383852402,1757143794629,1166.0,0.0003013,120]
[383852403,1757143798170,1601.0,0.0003013,120]
[383852404,1757143802933,348.0,0.0003013,120]
[383852405,1757143803480,315.31919124,0.0002,2]
[383852406,1757143803844,500.0,0.000219,2]
[383852407,1757143803902,500.0,0.00022448,2]
[383852409,1757143804855,182.13,0.00019999,2]
[383852412,1757143827438,9043.03558116,0.0002005,2]
[383852413,1757143827471,4799.349002,0.0002005,2]
[383852414,1757143827499,9167.05190556,0.0002005,2]
[383852417,1757143831754,-334.78694722,0.0002005,2]
[383852426,1757143831850,-3702.03584386,0.0002005,2]
[383852428,1757143831859,-1219.25449708,0.00022704,2]
[383852430,1757143831870,-335.26580545,0.00022704,2]
[383852432,1757143831888,-25491.73897727,0.00022704,2]
[383852434,1757143831897,-180.83468267,0.00023814,2]
[383852436,1757143831906,-300.0,0.000239,2]
[383852438,1757143831915,-663.90869884,0.00023986,2]
[383852440,1757143831924,-257.94,0.00024243,2]
[383852442,1757143831933,-164.31,0.00024332,2]
[383852444,1757143831942,-393.66564718,0.00024745,2]
[383852446,1757143831950,-300.0,0.00024799,2]
[383852448,1757143831959,-300.0,0.00024799,2]
[383852450,1757143831968,-1200.0,0.00024799,2]
[383852451,1757143831976,-300.0,0.00024799,2]
[383852453,1757143831986,-300.0,0.00024799,2]
[383852454,1757143831994,-135147.37918434,0.000248,3]
[383852455,1757143832006,-1495.2500428,0.000248,3]
[383852456,1757143832047,-491.0360497,0.000248,3]
[383852457,1757143832058,-748.44104968,0.000248,3]
[383852458,1757143832070,-2367.66569118,0.000248,3]
[383852459,1757143832112,-16091.42403396,0.000248,3]
[383852460,1757143832124,-10168.55203898,0.000248,3]
[383852461,1757143832135,-280.00572687,0.000248,3]
[383852478,1757143837918,-205.9139604,0.00024799,2]
[383852479,1757143837927,-500.0,0.00024799,2]
[383852480,1757143837937,-244.35614891,0.00024799,2]
[383852481,1757143837947,-272.06329322,0.00024799,2]
[383852482,1757143837957,-9846.27796852,0.000248,3]
[383852483,1757143837972,-34208.16561697,0.000248,3]
[383852484,1757143837982,-4962.19643543,0.000248,2]
[383852485,1757143837991,-1491.0,0.00024845,2]
[383852486,1757143838001,-1100.28,0.0002489,2]
[383852487,1757143838011,-213246.251758,0.000249,3]
[383852488,1757143838021,-3360.04,0.000249,2]
[383852489,1757143838031,-500.0,0.00024973,2]
[383852490,1757143838042,-500.98008459,0.00024973,2]
[383852491,1757143838051,-500.0,0.00024973,2]
[383852492,1757143838061,-500.0,0.00024973,2]
[383852493,1757143838072,-1100.28,0.0002499,2]
[383852494,1757143838082,-90261.38971815,0.00025,2]
[383852495,1757143838093,-6114.72,0.00025,7]
[383852496,1757143838103,-257.94,0.00025051,2]
[383852498,1757143838112,-27046.2592798,0.00025357,2]
[383852499,1757143838123,-1702.0,0.00025559,2]
[383852500,1757143838133,-1417.0,0.00025686,2]
[383852502,1757143838143,-1819.0,0.00025761,2]
[383852504,1757143838153,-257.94,0.00025859,2]
[383852506,1757143838163,-5000.0,0.00025898,2]
[383852508,1757143838172,-150.0,0.00026052,2]
[383852509,1757143838182,-381.0,0.00026087,2]
[383852510,1757143838191,-300.0,0.00026195,2]
[383852512,1757143838200,-500.0,0.00026195,2]
[383852514,1757143838210,-300.0,0.00026195,2]
[383852516,1757143838219,-195.0,0.00026195,2]
[383852518,1757143838228,-193.0,0.00026195,2]
[383852520,1757143838237,-150.0,0.00026195,2]
[383852522,1757143838246,-961.0,0.00026216,2]
[383852524,1757143838256,-393.66564717,0.00026269,2]
[383852526,1757143838265,-4962.19643543,0.00026318,2]
[383852529,1757143838275,-1624.14158933,0.000264,2]
[383852531,1757143838284,-257.94,0.00026668,2]
[383852533,1757143838293,-159.0,0.00026871,2]
[383852535,1757143838304,-420.0,0.00026871,2]
[383852537,1757143838313,-1680.0,0.00026993,2]
[383852539,1757143838323,-257.94,0.00027476,2]
[383852540,1757143838333,-349.0,0.0002779,2]
[383852542,1757143838345,-1966.22745476,0.0002779,2]
[383852544,1757143838355,-393.66564717,0.00027793,2]
[383852547,1757143838365,-4962.19643543,0.00027835,2]
[383852549,1757143838374,-224.0,0.0002788,2]
[383852550,1757143838384,-740.0,0.00027969,2]
[383852552,1757143838395,-362.83,0.00028,7]
[383852554,1757143838405,-27046.2592798,0.00028011,2]
[383852557,1757143838414,-257.94,0.00028284,2]
[383852559,1757143838423,-898.77,0.000288,7]
[383852561,1757143838433,-3360.04,0.000289,2]
[383852563,1757143838442,-257.94,0.00029092,2]
[383852565,1757143838451,-6114.72,0.000291,7]
[383852566,1757143838460,-568.0,0.00029116,2]
[383852568,1757143838470,-393.66564717,0.00029316,2]
[383852570,1757143838479,-4962.19643543,0.00029353,2]
[383852572,1757143838488,-2351.0,0.00029381,2]
[383852575,1757143838498,-257.94,0.000299,2]
[383852577,1757143838508,-234.3650969,0.0003,5]
[383852579,1757143838518,-399.999999,0.0003,2]
[383852581,1757143838527,-168.72,0.00030085,2]
[383852583,1757143838537,-164.31,0.00030416,120]
[383852585,1757143838546,-2499.87,0.00030708,2]
[383852587,1757143838555,-257.94,0.00030708,2]
[383852589,1757143838565,-393.66564717,0.0003084,2]
[383852591,1757143838574,-48830.09,0.00030914,2]
[383852593,1757143838582,-500.0,0.00030961,7]
[383852595,1757143838593,-13052.43275964,0.00031,120]
[383852596,1757143838602,-399.999999,0.0003121,2]
[383852598,1757143838611,-250.0,0.00031466,2]
[383852600,1757143838620,-570.828,0.00031617,29]
[383852602,1757143838630,-326.87,0.0003192,30]
[383852604,1757143838640,-1180.0,0.00031981,3]
[383852606,1757143838649,-1432.04,0.00032175,2]
[383852608,1757143838660,-158.72,0.00032249,2]
[383852610,1757143838669,-150.82,0.00032303,2]
[383852612,1757143838678,-1596.91,0.00032303,2]
[383852637,1757143838901,-500.0,0.00032315,7]
[383852639,1757143838911,-393.66564717,0.00032364,2]
[383852641,1757143838921,-500.0,0.00032552,7]
[383852643,1757143838931,-41036.09,0.00032696,2]
[383852645,1757143838940,-362.83,0.000327,30]
[383852647,1757143838949,-160.0,0.00032864,2]
[383852649,1757143838958,-160.0,0.00032864,2]
[383852651,1757143838968,-200.25225,0.000329,2]
[383852653,1757143838978,-200.0,0.00033113,2]
[383852655,1757143838987,-3716.56,0.00033168,2]
[383852657,1757143838997,-500.0,0.00033701,7]
[383852659,1757143839006,-3360.04,0.000338,2]
[383852661,1757143839016,-393.66564717,0.00033888,2]
[383852663,1757143839025,-500.0,0.0003395,7]
[383852665,1757143839035,-500.0,0.00034191,7]
[383852667,1757143839044,-898.77,0.000342,14]
[383852669,1757143839054,-924.87,0.00034469,120]
[383852671,1757143839063,-6114.72,0.000345,14]
[383852673,1757143839073,-5000.0,0.00034584,2]
[383852675,1757143839083,-152.99,0.00034613,120]
[383852677,1757143839092,-1852.42,0.00034728,2]
[383852679,1757143839102,-514.85095374,0.0003496,2]
[383852681,1757143839111,-4375.26,0.00035238,2]
[383852683,1757143839120,-431.12,0.00035284,2]
[383852685,1757143839130,-160.0,0.00035301,7]
[383852687,1757143839139,-500.0,0.0003533,7]
[383852689,1757143839148,-393.66564717,0.00035411,2]
[383852691,1757143839158,-200.0,0.00035412,2]
[383852693,1757143839168,-158.72,0.00035474,2]
[383852695,1757143839177,-151.043826,0.00035616,10]
[383852697,1757143839186,-153.494755,0.00035616,10]
[383852699,1757143839196,-166.328194,0.00035616,10]
[383852701,1757143839205,-250.0,0.0003617,2]
[383852703,1757143839214,-170.09,0.00036179,2]
[383852705,1757143839224,-298.28,0.0003641,60]
[383852707,1757143839233,-164.31,0.00036499,120]
[383852709,1757143839242,-500.0,0.00036706,7]
[383852711,1757143839251,-393.66564717,0.00036935,2]
[383852712,1757143839260,-440.01,0.00037274,2]
[383852714,1757143839270,-2679.31186012,0.00037559,9]
[383852716,1757143839279,-500.0,0.00037958,7]
[383852718,1757143839288,-162.0,0.00038,120]
[383852720,1757143839297,-362.83,0.00038,30]
[383852722,1757143839306,-3360.04,0.00038,2]
[383852724,1757143839315,-153.0,0.00038,120]
[383852726,1757143839324,-2906.98,0.00038259,16]
[383852728,1757143839333,-4000.0,0.00038278,4]
[383852730,1757143839343,-298.28,0.00038328,60]
[383852732,1757143839352,-1000.0,0.00038403,2]
[383852734,1757143839361,-220.41448552,0.00038459,2]
[383852736,1757143839371,-1941.46485108,0.00038459,2]
[383852738,1757143839380,-421.41378965,0.00038459,13]
[383852740,1757143839390,-393.66564717,0.00038459,2]
[383852742,1757143839402,-500.0,0.0003849,7]
[383852744,1757143839412,-13416.46796321,0.000385,120]
[383852745,1757143839421,-150.0,0.00038558,3]
[383852746,1757143839433,-150.0,0.00038558,3]
[383852747,1757143839442,-500.0,0.00038559,5]
[383852748,1757143839451,-156.82,0.00038559,2]
[383852749,1757143839460,-155.0,0.00038559,2]
[383852750,1757143839469,-155.0,0.00038559,2]
[383852751,1757143839479,-84348.13907691,0.00038559,2]
[383852752,1757143839489,-12020.33725896,0.00038559,2]
[383852753,1757143839498,-3237298.90245163,0.00038559,30]
[383852754,1757143839512,-833493.184187,0.00038559,30]
[383852755,1757143839535,-327063.0393943,0.00038559,30]
[383852756,1757143839553,-5404.366615,0.00038559,30]
[383852790,1757143839871,-167753.28684309,0.00038559,30]
[383852792,1757143839883,-1723.3,0.00038559,30]
[383852797,1757143839926,-5680.49041217,0.00038559,30]
[383852799,1757143839937,-818.06783151,0.00038559,30]
[383852802,1757143839950,-18978.3999996,0.00038559,30]
[383852817,1757143840084,-104.70321585,0.00038559,30]
[383852821,1757143840110,-6344.76438926,0.00038559,30]
[383853222,1757143844128,-574.184,0.00030871,2]
[383853225,1757143844150,-4388.01243543,0.00030871,2]
[383853228,1757143844160,-1562.13076514,0.00038459,2]
[383853229,1757143844169,-201.92939992,0.00038459,2]
[383853231,1757143844179,-10902.19812163,0.00038559,30]
[383853234,1757143844190,-911.5,0.00038559,30]
[383853396,1757143845836,-614.22639525,0.00038559,30]
[383853405,1757143845919,-494.61771879,0.00038559,30]
[383853408,1757143845933,-646.85139686,0.00038559,30]
[383853424,1757143846081,-978.03724869,0.00038559,30]
[383853427,1757143846106,-590.23,0.00038559,30]
[383853431,1757143846139,-366.24834666,0.00038559,30]
[383853446,1757143846271,-2099.41782797,0.00038559,30]
[383853512,1757143846905,2000.0,0.00027417,120]
[383853539,1757143847149,2000.0,0.00027417,120]
[383853561,1757143847461,1051.28,0.00027417,120]
[383853869,1757143850548,257.0,0.0003013,120]
[383854319,1757143921954,500.0,0.00027279,120]
[383854320,1757143922146,500.0,0.00024886,120]
[383854321,1757143922311,500.0,0.00029786,120]
[383854322,1757143923032,300.0,0.00027279,120]
[383854323,1757143923232,300.0,0.00024886,120]
[383854324,1757143923444,300.0,0.00029786,120]
[383854325,1757143924647,195.0,0.00027279,120]
[383854326,1757143924804,195.0,0.00024886,120]
[383854327,1757143924981,195.0,0.00029786,120]
[383854328,1757143926812,193.0,0.00027279,120]
[383854329,1757143928234,300.0,0.00027279,120]
[383854330,1757143928296,300.0,0.00024886,120]
[383854331,1757143928348,300.0,0.00029786,120]
[383854348,1757144405674,300.0,0.0002747,120]
[383854370,1757144829084,-168.3888056,0.00024973,2]
[383854371,1757144829106,-445.27390174,0.00031304,2]
[383854372,1757144829132,-160.0,0.00032864,2]
[383854373,1757144829153,-250.0,0.00033381,2]
[383854374,1757144829175,-151.043826,0.00035616,10]
[383854375,1757144829196,-500.0,0.00036115,7]
[383854376,1757144829218,-232.0,0.00036683,60]
[383854377,1757144829241,-1249.93,0.00036796,2]
[383854378,1757144829267,-250.0,0.00036867,2]
[383854379,1757144829289,-666.0,0.00036878,3]
[383854380,1757144829312,-160.88,0.0003697,2]
[383854381,1757144829334,-679.19,0.0003697,30]
[383854382,1757144829356,-1200.0,0.00037051,3]
[383854383,1757144829378,-1852.42,0.00037052,2]
[383854384,1757144829400,-400.0,0.00037078,2]
[383854385,1757144829423,-164.84,0.00037079,30]